fUST/lending_fUST_20260321
["ID","MTS","AMOUNT","RATE_DAILY","PERIOD"]
[408646519,1774044643876,-215.91646739,0.00010787,2]
[408646520,1774044643890,-323.72141682,0.00010787,2]
[408646521,1774044643900,-500.0,0.00010787,2]
[408646522,1774044643909,-500.0,0.00010787,2]
[408646523,1774044643919,-500.0,0.00010787,2]
[408646524,1774044643930,-593.19219638,0.00010787,2]
[408646525,1774044643939,-500.0,0.00010787,2]
[408646526,1774044643949,-500.0,0.00010787,2]
[408646527,1774044643959,-500.0,0.00010787,2]
[408646528,1774044643969,-500.0,0.00010787,2]
[408646529,1774044643979,-500.0,0.00010787,2]
[408646530,1774044643988,-500.0,0.00010787,2]
[408646531,1774044643998,-567.75813845,0.00010787,2]
[408646532,1774044644007,-500.0,0.00010787,2]
[408646533,1774044644016,-500.0,0.00010787,2]
[408646534,1774044644027,-500.0,0.00010787,2]
[408646535,1774044644036,-623.27031468,0.00010787,2]
[408646536,1774044644046,-500.0,0.00010787,2]
[408646537,1774044644055,-500.0,0.00010787,2]
[408646538,1774044644064,-500.0,0.00010787,2]
[408646539,1774044644073,-500.0,0.00010787,2]
[408646540,1774044644083,-500.0,0.00010787,2]
[408646541,1774044644092,-500.0,0.00010787,2]
[408646542,1774044644101,-500.0,0.00010787,2]
[408646543,1774044644111,-500.0,0.00010787,2]
[408646544,1774044644120,-500.0,0.00010788,2]
[408646545,1774044644129,-196.1430804,0.00010819,2]
[408646546,1774044644139,-745.65223616,0.00010831,2]
[408646547,1774044644149,-2230.315306,0.00010884,2]
[408646548,1774044644159,-773.2413689,0.00010886,2]
[408646549,1774044644172,-500.0,0.00010899,2]
[408646550,1774044644182,-314.45645,0.00010899,2]
[408646551,1774044644192,-500.0,0.00010899,2]
[408646552,1774044644202,-500.0,0.00010899,2]
[408646553,1774044644211,-500.0,0.00010899,2]
[408646554,1774044644221,-157428.85600245,0.000109,2]
[408646555,1774044645251,151.0,6e-05,120]
[408646591,1774044646542,-32194.64739718,0.000109,2]
[408646593,1774044646552,-560.72936688,0.00010941,2]
[408646595,1774044646561,-600.0,0.00010942,2]
[408646597,1774044646571,-188.0,0.00010959,3]
[408646599,1774044646580,-8267.26351732,0.00010959,2]
[408647033,1774044685011,151.0,6e-05,120]
[408647034,1774044716865,151.0,6e-05,120]
[408647035,1774044746978,151.0,6e-05,120]
[408647036,1774044785004,151.0,6e-05,120]
[408647037,1774044825558,151.0,6e-05,120]
[408647038,1774044856036,151.0,6e-05,120]
[408647039,1774044906602,151.0,6e-05,120]
[408647040,1774044944675,151.0,6e-05,120]
[408647041,1774044976747,151.0,6e-05,120]
[408647042,1774045027444,151.0,6e-05,120]
[408647043,1774045066549,151.0,6e-05,120]
[408647044,1774045104655,151.0,6e-05,120]
[408647045,1774045146722,151.0,6e-05,120]
[408647046,1774045185187,151.0,6e-05,120]
[408647047,1774045226135,151.0,6e-05,120]
[408647048,1774045265596,151.0,6e-05,120]
[408647049,1774045317274,151.0,6e-05,120]
[408647050,1774045356604,151.0,6e-05,120]
[408647051,1774045386804,151.0,6e-05,120]
[408647052,1774045427271,151.0,6e-05,120]
[408647053,1774045467059,151.0,6e-05,120]
[408647054,1774045502313,151.0,6e-05,120]
[408647055,1774045535459,151.0,6e-05,120]
[408647056,1774045576649,151.0,6e-05,120]
[408647057,1774045626937,151.0,6e-05,120]
[408647059,1774045675074,151.0,6e-05,120]
[408647060,1774045706478,151.0,6e-05,120]
[408647061,1774045745026,151.0,6e-05,120]
[408647062,1774045785863,151.0,6e-05,120]
[408647063,1774045827081,151.0,6e-05,120]
[408647080,1774045831630,-183.0,8.862e-05,2]
[408647082,1774045831639,-436.55233372,8.862e-05,2]
[408647084,1774045831651,-107.44766628,8.862e-05,2]
[408647086,1774045831660,-668.71585118,8.933e-05,2]
[408647088,1774045831671,-445.61130409,8.933e-05,2]
[408647090,1774045831680,-590.78638862,8.96e-05,2]
[408647091,1774045831690,-307.35237139,9.233e-05,2]
[408647092,1774045831700,-1163.20743793,9.233e-05,2]
[408647094,1774045837572,-386.5784009,9.233e-05,2]
[408647177,1774045840171,-256.80187681,9.233e-05,2]
[408647210,1774045845810,-433.00093059,9.233e-05,2]
[408647211,1774045845821,-1790.52511447,0.00010407,2]
[408647212,1774045872319,151.0,6e-05,120]
[408647213,1774045915208,151.0,6e-05,120]
[408647257,1774045956656,151.0,6e-05,120]
[408647503,1774045995695,151.0,6e-05,120]
[408647596,1774046036896,151.0,6e-05,120]
[408648182,1774046075084,151.0,6e-05,120]
[408648233,1774046097385,500.0,6e-05,50]
[408648234,1774046106213,151.0,6e-05,120]
[408648235,1774046145433,151.0,6e-05,120]
[408648236,1774046186724,151.0,6e-05,120]
[408648237,1774046227293,151.0,6e-05,120]
[408648238,1774046265932,151.0,6e-05,120]
[408648239,1774046304976,151.0,6e-05,120]
[408648240,1774046335045,151.0,6e-05,120]
[408648241,1774046365141,151.0,6e-05,120]
[408648242,1774046395264,151.0,6e-05,120]
[408648243,1774046425607,151.0,6e-05,120]
[408648244,1774046441881,8132.0,6e-05,50]
[408648245,1774046465659,151.0,6e-05,120]
[408648246,1774046507681,151.0,6e-05,120]
[408648247,1774046545809,151.0,6e-05,120]
[408648248,1774046586213,151.0,6e-05,120]
[408648249,1774046636957,151.0,6e-05,120]
[408648250,1774046666583,151.0,6e-05,120]
[408648251,1774046696851,151.0,6e-05,120]
[408648252,1774046730939,151.0,6e-05,120]
[408648253,1774046776787,151.0,6e-05,120]
[408648254,1774046815049,151.0,6e-05,120]
[408648255,1774046847561,151.0,6e-05,120]
[408648256,1774046876988,151.0,6e-05,120]
[408648257,1774046917154,151.0,6e-05,120]
[408648258,1774046956511,151.0,6e-05,120]
[408648259,1774046986649,151.0,6e-05,120]
[408648287,1774047031769,-496.286,9.009e-05,2]
[408648289,1774047031781,-388.02580248,9.009e-05,2]
[408648291,1774047031792,-1748.84541861,9.009e-05,2]
[408648320,1774047036575,151.0,6e-05,120]
[408648334,1774047037814,-2000.0,8.919e-05,2]
[408648335,1774047037823,-2366.84277891,9.009e-05,2]
[408648336,1774047037833,-200.0,9.1e-05,2]
[408648337,1774047037843,-547.0,9.1e-05,2]
[408648338,1774047037852,-183.0,9.175e-05,2]
[408648339,1774047037862,-151.075,9.175e-05,2]
[408648340,1774047037872,-1500.0,9.71e-05,2]
[408648341,1774047037881,-188.9891784,9.72e-05,2]
[408648342,1774047037894,-1101.51754125,0.00010407,2]
[408648343,1774047037904,-399.96477,0.00010656,2]
[408648344,1774047037914,-300.0,0.00010698,2]
[408648345,1774047037923,-1200.0,0.00010698,2]
[408648346,1774047037932,-2186.0,0.00010699,2]
[408648348,1774047037942,-458.14114608,0.00010699,2]
[408648349,1774047037951,-399.24357738,0.00010699,2]
[408648350,1774047037960,-451.97312649,0.00010699,2]
[408648351,1774047037969,-52424.94403166,0.000107,2]
[408648352,1774047037979,-500.0,0.00010773,2]
[408648353,1774047037988,-500.0,0.00010773,2]
[408648354,1774047037997,-500.0,0.00010773,2]
[408648355,1774047038007,-642.19999928,0.00010773,2]
[408648356,1774047038016,-500.0,0.00010773,2]
[408648357,1774047038026,-500.0,0.00010773,2]
[408648358,1774047038035,-582.67904644,0.00010773,2]
[408648359,1774047038044,-2150.738,0.00010794,2]
[408648360,1774047038054,-1005.6533813,0.00010799,2]
[408648361,1774047038063,-607.623,0.00010799,2]
[408648362,1774047038073,-190.0,0.00010959,3]
[408648363,1774047038082,-15380.3736,0.00010959,2]
[408648364,1774047038091,-500.0,0.00010971,2]
[408648365,1774047038100,-295.68899931,0.00010971,2]
[408648366,1774047038110,-620.119515,0.00010971,2]
[408648367,1774047038119,-500.0,0.00010971,2]
[408648368,1774047038128,-500.0,0.00010973,2]
[408648369,1774047038138,-500.0,0.00010973,2]
[408648370,1774047038147,-500.0,0.00010973,2]
[408648371,1774047038157,-500.0,0.00010973,2]
[408648372,1774047038166,-500.0,0.00010973,2]
[408648373,1774047038175,-502.20586507,0.00010973,2]
[408648374,1774047038185,-500.0,0.00010973,2]
[408648375,1774047038195,-500.0,0.00010973,2]
[408648376,1774047038204,-500.0,0.00010973,2]
[408648377,1774047038214,-500.0,0.00010973,2]
[408648378,1774047038224,-500.0,0.00010973,2]
[408648379,1774047038233,-500.0,0.00010973,2]
[408648380,1774047038243,-500.0,0.00010973,2]
[408648381,1774047038252,-529.3925529,0.00010973,2]
[408648382,1774047038261,-11849.06033079,0.00011,7]
[408648383,1774047038273,-1312.0,0.00011,7]
[408648384,1774047038288,-95800.0,0.00011,7]
[408648406,1774047040381,-622.5,0.00011,7]
[408648416,1774047043130,-3290.82508246,0.00011,7]
[408648417,1774047043142,-806.99127554,0.00011,7]
[408648453,1774047046095,-500.0,0.00010699,2]
[408648454,1774047046105,-14587.44369629,0.00011,7]
[408649962,1774047077715,151.0,6e-05,120]
[408649963,1774047115415,151.0,6e-05,120]
[408649964,1774047146995,151.0,6e-05,120]
[408649965,1774047185204,151.0,6e-05,120]
[408649966,1774047217275,151.0,6e-05,120]
[408649967,1774047254650,151.0,6e-05,120]
[408649968,1774047285081,151.0,6e-05,120]
[408649969,1774047325345,151.0,6e-05,120]
[408649970,1774047364877,151.0,6e-05,120]
[408649971,1774047396665,151.0,6e-05,120]
[408649972,1774047435438,151.0,6e-05,120]
[408649973,1774047475043,151.0,6e-05,120]
[408649974,1774047517262,151.0,6e-05,120]
[408649976,1774047557186,151.0,6e-05,120]
[408650276,1774047604899,151.0,6e-05,120]
[408650281,1774047645266,151.0,6e-05,120]
[408650298,1774047680556,-762.26853017,9.048e-05,2]
[408650299,1774047685367,151.0,6e-05,120]
[408650523,1774047717453,151.0,6e-05,120]
[408650933,1774047752758,151.0,6e-05,120]
[408651114,1774047785253,151.0,6e-05,120]
[408651115,1774047826226,151.0,6e-05,120]
[408651116,1774047862333,151.0,6e-05,120]
[408651118,1774047896845,151.0,6e-05,120]
[408651119,1774047937030,151.0,6e-05,120]
[408651120,1774047972651,151.0,6e-05,120]
[408651121,1774048015528,151.0,6e-05,120]
[408651122,1774048047014,151.0,6e-05,120]
[408651124,1774048086696,151.0,6e-05,120]
[408651125,1774048125483,151.0,6e-05,120]
[408651126,1774048166987,151.0,6e-05,120]
[408651127,1774048205815,151.0,6e-05,120]
[408651135,1774048231925,-251.74626043,6.763e-05,2]
[408651137,1774048231938,-696.04373957,6.763e-05,2]
[408651251,1774048240601,-2364.14349102,6.763e-05,2]
[408651505,1774048243128,-1688.06650898,6.763e-05,2]
[408651508,1774048243140,-516.0,6.763e-05,2]
[408651510,1774048243151,-632.00826668,6.9e-05,2]
[408651512,1774048243164,-267.99173332,6.9e-05,2]
[408651514,1774048243175,-900.0,7.9e-05,2]
[408651517,1774048243186,-900.0,8.9e-05,2]
[408651519,1774048243197,-169.645659,8.937e-05,2]
[408651521,1774048243208,-1200.0,9.076e-05,2]
[408651523,1774048243219,-183.0,9.078e-05,2]
[408651526,1774048243230,-300.0,9.208e-05,2]
[408651528,1774048243241,-1044.19324151,9.212e-05,2]
[408651530,1774048243251,-2026.04953587,9.312e-05,2]
[408651532,1774048243262,-2232.43321233,9.412e-05,2]
[408651534,1774048243273,-2553.30596467,9.577e-05,2]
[408651537,1774048243284,-900.0,9.9e-05,2]
[408651539,1774048243295,-1470.0,9.984e-05,2]
[408651541,1774048243306,-1096.90720777,0.0001,30]
[408651543,1774048243316,-395.45561033,0.00010129,2]
[408651547,1774048243339,-24.54438967,0.00010129,2]
[408651549,1774048243351,-9517.03498466,0.000103,2]
[408651821,1774048245906,151.0,6e-05,120]
[408651843,1774048246117,-24368.94900374,0.000103,2]
[408651868,1774048246342,-84.15461223,0.000103,2]
[408651870,1774048246354,-898.6225726,0.000103,2]
[408651872,1774048246366,-756.31181517,0.00010305,2]
[408652679,1774048277327,151.0,6e-05,120]
[408652680,1774048315597,151.0,6e-05,120]
[408652681,1774048355583,151.0,6e-05,120]
[408652682,1774048392966,151.0,6e-05,120]
[408652683,1774048426939,151.0,6e-05,120]
[408652684,1774048476575,151.0,6e-05,120]
[408652685,1774048506900,151.0,6e-05,120]
[408652723,1774049432144,-1297.01723482,8.664e-05,2]
[408652725,1774049432155,-2966.91,8.664e-05,2]
[408652755,1774049438216,-527.18973794,8.664e-05,2]
[408652783,1774049438900,-208.88302724,8.664e-05,2]
[408652784,1774049438909,-543.0,8.752e-05,2]
[408652785,1774049438918,-1774.43302038,8.84e-05,2]
[408652786,1774049438926,-362.7992722,9.164e-05,2]
[408652787,1774049438936,-183.0,9.203e-05,2]
[408652788,1774049438945,-1200.0,0.0001007,2]
[408652789,1774049438955,-300.0,0.00010071,2]
[408652790,1774049438963,-300.0,0.00010071,2]
[408652791,1774049438972,-300.0,0.00010072,2]
[408652792,1774049438980,-500.0,0.00010073,2]
[408652793,1774049438988,-500.0,0.00010073,2]
[408652794,1774049438997,-151.49422731,0.00010073,2]
[408652795,1774049439006,-500.0,0.00010073,2]
[408652796,1774049439015,-500.0,0.00010073,2]
[408652797,1774049439024,-500.0,0.00010073,2]
[408652798,1774049439032,-500.0,0.00010073,2]
[408652799,1774049439040,-500.0,0.00010073,2]
[408652800,1774049439049,-500.0,0.00010073,2]
[408652801,1774049439058,-500.0,0.00010073,2]
[408652802,1774049439067,-200.0,0.00010073,2]
[408652803,1774049439075,-500.0,0.00010073,2]
[408652804,1774049439084,-500.0,0.00010073,2]
[408652805,1774049439092,-500.0,0.00010097,2]
[408652806,1774049439101,-206.98229952,0.00010097,2]
[408652807,1774049439110,-634.0836605,0.00010097,2]
[408652808,1774049439118,-230.31727635,0.00010097,2]
[408652809,1774049439127,-500.0,0.00010097,2]
[408652810,1774049439136,-500.0,0.00010097,2]
[408652811,1774049439144,-408.71043646,0.00010097,2]
[408652812,1774049439153,-500.0,0.00010097,2]
[408652813,1774049439163,-152.37907604,0.00010097,2]
[408652814,1774049439171,-2582.59614742,0.00010098,2]
[408652884,1774049440904,-11599.12067499,0.00010098,2]
[408652947,1774049446193,-499.48143251,0.00010098,2]
[408652948,1774049446421,-806.99127554,0.00010098,2]
[408652949,1774049446606,-4717.07435341,0.00010098,2]
[408652950,1774049446617,-1992.05983524,0.00010098,2]
[408652952,1774049446675,-95868.43507624,0.00010098,2]
[408652977,1774050632497,-683.5,8.617e-05,2]
[408652979,1774050632509,-415.5682228,8.617e-05,2]
[408653024,1774050638485,-1000.0,8.617e-05,2]
[408653119,1774050646661,-2900.9317772,8.617e-05,2]
[408653120,1774050646671,-542.0,8.704e-05,2]
[408653121,1774050646681,-1350.9362249,8.704e-05,2]
[408653122,1774050646691,-230.0,9.247e-05,2]
[408653123,1774050646701,-1200.0,9.247e-05,2]
[408653124,1774050646710,-273.21074517,9.248e-05,2]
[408653125,1774050646719,-571.49984268,9.416e-05,2]
[408653126,1774050646729,-1115.7670306,9.516e-05,2]
[408653127,1774050646738,-1660.03421853,9.616e-05,2]
[408653128,1774050646748,-183.0,9.627e-05,2]
[408653129,1774050646757,-2179.75990666,9.816e-05,2]
[408653130,1774050646767,-500.0,9.873e-05,2]
[408653131,1774050646776,-500.0,9.897e-05,2]
[408653132,1774050646786,-293.85856235,9.897e-05,2]
[408653133,1774050646795,-82926.91972849,9.898e-05,2]
[408653134,1774050646805,-228.10831028,9.973e-05,2]
[408653135,1774050646814,-500.0,9.973e-05,2]
[408653136,1774050646824,-500.0,9.973e-05,2]
[408653137,1774050646833,-333.303975,0.00010057,2]
[408653138,1774050646844,-1680.0,0.00010172,2]
[408653139,1774050646854,-600.0,0.00010299,2]
[408653140,1774050646864,-2150.738,0.00010422,2]
[408653141,1774050646874,-486.098,0.00010446,2]
[408653142,1774050646883,-2204.30140645,0.00010448,2]
[408653143,1774050646892,-333.303975,0.00010481,2]
[408653144,1774050646902,-269.55365727,0.00010603,2]
[408653145,1774050646911,-363.66178273,0.00010779,2]
[408653146,1774050646921,-900.0,0.000109,2]
[408653147,1774050646931,-333.303975,0.00010904,2]
[408653148,1774050646940,-186.0,0.00010959,3]
[408653149,1774050646949,-7548.72751304,0.00010959,2]
[408653150,1774050646961,-7831.64608696,0.00010959,2]
[408653151,1774050646970,-151.0,0.00010959,2]
[408653152,1774050646980,-151.0,0.00010959,2]
[408653153,1774050646990,-151.0,0.00010959,2]
[408653154,1774050647000,-151.0,0.00010959,2]
[408653155,1774050647009,-275.740834,0.00010959,2]
[408653156,1774050647019,-275.740834,0.00010959,2]
[408653157,1774050647029,-2230.315306,0.0001097,2]
[408653158,1774050647038,-500.0,0.00010973,2]
[408653159,1774050647047,-298.95347877,0.00010973,2]
[408653160,1774050647058,-201.04652123,0.00010973,2]
[408653161,1774050647068,-500.0,0.00010973,2]
[408653162,1774050647077,-500.0,0.00010973,2]
[408653163,1774050647087,-19039.90490792,0.00011,7]
[408653164,1774051285822,-3187.81081078,9.506e-05,2]
[408653187,1774051831589,-5000.0,9.311e-05,2]
[408653189,1774051831600,-552.0,9.405e-05,2]
[408653191,1774051831610,-158.0,9.5e-05,2]
[408653193,1774051831619,-158.0,0.000102,2]
[408653195,1774051831629,-1200.0,0.00010778,2]
[408653197,1774051831639,-242.44118849,0.00010779,2]
[408653199,1774051831649,-300.0,0.00010872,2]
[408653201,1774051831671,-300.0,0.00010872,2]
[408653204,1774051831701,-300.0,0.00010872,2]
[408653207,1774051831720,-500.0,0.00010873,2]
[408653210,1774051831745,-500.0,0.00010873,2]
[408653213,1774051831758,-2150.738,0.00010893,2]
[408653218,1774051831801,-555.70099364,0.00010899,2]
[408653221,1774051831817,-162.46665178,0.000109,3]
[408653223,1774051831830,-1455.86,0.000109,5]
[408653224,1774051831841,-53711.41598245,0.000109,2]
[408653226,1774051831855,-361.63977585,0.000109,2]
[408653271,1774051838186,-183.0,0.00010119,2]
[408653272,1774051838196,-364.83999447,0.00010791,2]
[408653323,1774051843088,-4635.16000553,0.00010791,2]
[408653324,1774051843098,-11171.29293499,0.000109,2]
[408653325,1774051843110,-1591.12888833,0.000109,2]
[408653385,1774053032502,-5000.0,9.476e-05,2]
[408653386,1774053032512,-554.0,9.571e-05,2]
[408653387,1774053032522,-3757.2618096,9.571e-05,2]
[408653388,1774053032532,-1200.0,9.794e-05,2]
[408653389,1774053032542,-128.35497237,9.993e-05,2]
[408653392,1774053037938,-171.64502763,9.993e-05,2]
[408653393,1774053037949,-300.0,9.993e-05,2]
[408653394,1774053037960,-300.0,9.993e-05,2]
[408653395,1774053037970,-188.06999739,9.994e-05,2]
[408653469,1774053046196,-2219.35295231,9.994e-05,2]
[408653470,1774053046206,-183.0,0.00010258,2]
[408653471,1774053046217,-204.448229,0.00010636,2]
[408653472,1774053046226,-13470.39171561,0.00010693,2]
[408653473,1774053046237,-1121.0,0.00010693,2]
[408653507,1774054232270,-5000.0,9.415e-05,2]
[408653509,1774054232280,-552.0,9.415e-05,2]
[408653511,1774054232289,-1200.0,9.899e-05,2]
[408653513,1774054232298,-717.51184899,9.9e-05,2]
[408653514,1774054232309,-467.52642622,9.9e-05,2]
[408653515,1774054232320,-1322.24195702,9.9e-05,2]
[408653517,1774054232330,-522.87,0.0001,2]
[408653518,1774054232339,-296.97700622,0.0001,3]
[408653519,1774054232614,-330.04220898,0.0001,3]
[408653525,1774054238079,-372.9807848,0.0001,3]
[408653526,1774054238090,-300.0,0.00010492,2]
[408653527,1774054238100,-300.0,0.00010492,2]
[408653528,1774054238109,-300.0,0.00010492,2]
[408653529,1774054238119,-300.0,0.00010492,2]
[408653530,1774054238129,-918.66704675,0.00010493,2]
[408653531,1774054238141,-10597.97924138,0.00010493,2]
[408653532,1774054238152,-34014.28344998,0.00010493,2]
[408653533,1774054238163,-777.43067162,0.00010493,2]
[408654107,1774054246366,-1540.41835745,0.00010493,2]
[408654109,1774054246378,-13625.87801045,0.00010493,2]
[408657022,1774054899600,-423.76405206,0.00010082,2]
[408657043,1774055432197,-380.32218432,9.34e-05,2]
[408657049,1774055432253,-1223.95641538,9.34e-05,2]
[408657051,1774055432263,-551.0,9.34e-05,2]
[408657053,1774055432273,-5000.0,9.785e-05,2]
[408657055,1774055432282,-209.13292701,0.00010085,2]
[408657056,1774055432291,-825.23507313,0.00010183,2]
[408657058,1774055432303,-374.76492687,0.00010183,2]
[408657060,1774055432313,-500.0,0.00010185,2]
[408657061,1774055432322,-300.0,0.00010291,2]
[408657062,1774055432331,-300.0,0.00010291,2]
[408657063,1774055432341,-300.0,0.00010292,2]
[408657064,1774055432350,-500.0,0.00010292,2]
[408657065,1774055432359,-500.0,0.00010292,2]
[408657066,1774055432369,-432.64819041,0.00010292,2]
[408657067,1774055432378,-500.0,0.00010292,2]
[408657068,1774055432387,-500.0,0.00010292,2]
[408657069,1774055432397,-239.96211677,0.00010292,2]
[408657070,1774055432407,-428.11286827,0.00010292,2]
[408657071,1774055432416,-11224.13139042,0.00010293,2]
[408657075,1774055438311,-5575.03611349,0.00010293,2]
[408657076,1774055438323,-17288.83269403,0.00010293,2]
[408657077,1774055438333,-1549.45744067,0.00010293,2]
[408657080,1774055440833,-396.27900709,0.00010293,2]
[408657081,1774055440846,-1202.22657072,0.00010293,2]
[408657113,1774055446606,-1997.7813721,0.0001019,2]
[408657159,1774056633046,-189.1615269,9.246e-05,2]
[408657161,1774056633055,-5000.0,9.401e-05,2]
[408657162,1774056633065,-552.0,9.401e-05,2]
[408657164,1774056633074,-307.61183717,9.496e-05,2]
[408657166,1774056633083,-1053.94766474,9.869e-05,2]
[408657168,1774056633092,-1200.0,9.967e-05,2]
[408657170,1774056633102,-300.0,9.968e-05,2]
[408657172,1774056633110,-300.0,9.968e-05,2]
[408657174,1774056633120,-300.0,9.968e-05,2]
[408657176,1774056633129,-300.0,9.968e-05,2]
[408657178,1774056633138,-2045.41713425,9.969e-05,2]
[408657180,1774056633148,-209.13292701,9.99e-05,2]
[408657181,1774056633157,-160.19424162,0.0001,2]
[408657183,1774056633166,-1121.20842749,0.0001,2]
[408657185,1774056633175,-1146.26788595,0.0001,2]
[408657186,1774056633184,-270.57817175,0.0001,2]
[408657187,1774056633195,-159.47803822,0.0001,2]
[408657188,1774056633204,-307.03630576,0.0001,2]
[408657189,1774056633213,-153.51815287,0.0001,2]
[408657190,1774056633223,-163.75255513,0.0001,2]
[408657191,1774056633234,-2258.07647445,0.00010069,2]
[408657192,1774056633244,-1369.25015757,0.00010169,2]
[408657193,1774056633258,-1051.63405614,0.00010169,2]
[408657194,1774056633267,-2583.69195311,0.00010269,2]
[408657195,1774056633277,-398.48786114,0.00010296,2]
[408657196,1774056633286,-422.348466,0.00010309,2]
[408657197,1774056633295,-1121.20842749,0.00010385,2]
[408657198,1774056633305,-1146.26788595,0.00010385,2]
[408657199,1774056633315,-2150.738,0.00010423,2]
[408657200,1774056633325,-2909.3074319,0.00010469,2]
[408657201,1774056633335,-388.879,0.00010492,2]
[408657202,1774056633344,-3036.88660376,0.00010569,2]
[408657203,1774056633353,-2331.93148477,0.00010593,2]
[408657204,1774056633365,-679.23543468,0.00010593,2]
[408657205,1774056633376,-9076.87968842,0.00010593,2]
[408657217,1774056641076,-281.62876343,9.154e-05,2]
[408657218,1774056641085,-444.61235948,0.00010593,2]
[408657219,1774056641225,-3147.95477771,0.00010593,2]
[408657220,1774056641235,-994.22942487,0.00010669,2]
[408657395,1774056643732,-288.07357235,0.00010669,2]
[408657415,1774056646895,-1789.81217408,0.00010669,2]
[408657416,1774056646908,-5714.97810654,0.00010671,2]
[408657417,1774056646919,-181490.34136387,0.00010671,2]
[408657418,1774056646933,-2005.27281126,0.00010671,2]
[408657467,1774057831847,-214.6722184,9.057e-05,2]
[408657469,1774057831857,-547.0,9.057e-05,2]
[408657471,1774057831866,-1200.0,9.58e-05,2]
[408657473,1774057831875,-3095.4277816,9.581e-05,2]
[408657475,1774057831887,-4416.7517646,9.581e-05,2]
[408657478,1774057831897,-300.0,9.625e-05,2]
[408657479,1774057831906,-300.0,9.625e-05,2]
[408657481,1774057831915,-300.0,9.625e-05,2]
[408657484,1774057831924,-300.0,9.625e-05,2]
[408657486,1774057831934,-300.0,9.626e-05,2]
[408657487,1774057831943,-19817.6693134,9.63e-05,2]
[408657490,1774057831953,-5004.59706597,0.00010137,2]
[408657492,1774057831962,-501.14748091,0.00010268,2]
[408657494,1774057831972,-500.0,0.00010317,2]
[408657496,1774057831981,-85259.83437512,0.0001037,2]
[408657498,1774057831993,-658.06644971,0.0001037,2]
[408657557,1774057837759,-355.34014693,0.0001037,2]
[408657558,1774057837772,-6866.57385313,0.0001037,2]
[408657559,1774057837784,-5660.67887632,0.0001037,2]
[408657560,1774057837796,-1066.06781882,0.0001037,2]
[408657618,1774057840287,-3134.69578382,0.0001037,2]
[408657726,1774057842936,-427.77401337,0.0001037,2]
[408657733,1774057842991,-5004.66784654,0.0001037,2]
[408657735,1774057843003,-23916.25764244,0.0001037,2]
[408657737,1774057843016,-9046.98300026,0.0001037,2]
[408657739,1774057843028,-5059.0,0.0001037,2]
[408657742,1774057843040,-1826.03086402,0.0001037,2]
[408657744,1774057843053,-639.54173987,0.0001037,2]
[408657826,1774057846030,-1158.31632043,0.0001037,2]
[408657828,1774057846043,-74923.05769049,0.0001037,2]
[408657916,1774058481376,-557.0,9.811e-05,2]
[408657917,1774058481403,-319.55421633,9.811e-05,2]
[408657918,1774058498126,-3512.26819272,0.00010026,2]
[408657919,1774058527370,-300.0,0.00010025,2]
[408657920,1774058527393,-300.0,0.00010026,2]
[408657921,1774058527409,-276.55421633,0.00010026,2]
[408657944,1774059031792,-300.0,9.998e-05,2]
[408657945,1774059031803,-300.0,9.998e-05,2]
[408657946,1774059031812,-300.0,9.998e-05,2]
[408657947,1774059031821,-300.0,9.998e-05,2]
[408657948,1774059031830,-1200.0,9.998e-05,2]